Cogmind - Beta 13 @@@ ROGUE MODE // 2024.04.07 @ 20:54:17 Player: Bort Result: Destroyed by G-34 Mercenary with Small Laser Performance ------------- Evolutions (1) 500 Regions Visited (5) 1000 Robots Destroyed (17) 85 Value Destroyed (332) 332 Prototype IDs (0) 0 Alien Tech Used (0) 0 Bonus (400) 400 TOTAL SCORE: 2317 Bonus ------- Pacifist 200 Entered Garrisons 200 Cogmind --------- Core Integrity 0/400 Matter 300/300 Energy 100/100 System Corruption 0% Temperature Cool (6) Movement Core (200) Ox3 Location -9/Garrison Parts ------- > --- POWER (2) -------- (None) > --- PROPULSION (2) --- (None) > --- UTILITY (3) ------ Medium Storage Unit > --- WEAPON (2) ------- (None) > --- INVENTORY (10) --- (None) Peak State ------------ > --- POWER ------------ Light Ion Engine Light Ion Engine > --- PROPULSION ------- Flight Unit Flight Unit > --- UTILITY ---------- Improved Heat Sink Medium Storage Unit Medium Armor Plating > --- WEAPON ----------- Beam Rifle Shotgun > --- INVENTORY -------- Light Ion Engine [Rating: 14] Favorites ----------- Power Light Ion Engine Engine Light Ion Engine Power Core Light Nuclear Core Propulsion Flight Unit Treads Light Treads Leg Aluminum Leg Flight Unit Flight Unit Utility Medium Storage Unit Device Improved Heat Sink Storage Medium Storage Unit Protection Medium Armor Plating Weapon Medium Laser Energy Gun Medium Laser Energy Cannon Particle Cannon Ballistic Gun Shotgun Build | -11 -10 -10 -9 -9 -9 ------- Run | Yrd Mat Min Mat Sto Gar Slots Evolved 2 | . . . 2 . . Power 1 | . . . 1 . . Propulsion . | . . . . . . Utility 1 | . . . 1 . . Weapon . | . . . . . . Parts Attached 28 | 6 5 2 6 . 9 Power 6 | 1 . 1 1 . 3 Engine 5 | 1 . . 1 . 3 Core 1 | . . 1 . . . Reactor . | . . . . . . Propulsion 8 | 2 . . 2 . 4 Treads 2 | 2 . . . . . Leg 4 | . . . . . 4 Wheel . | . . . . . . Hover . | . . . . . . Flight 2 | . . . 2 . . Utility 5 | 1 2 1 1 . . Device 2 | . 1 1 . . . Storage 2 | 1 1 . . . . Processor . | . . . . . . Hackware . | . . . . . . Protection 1 | . . . 1 . . Artifact . | . . . . . . Weapon 9 | 2 3 . 2 . 2 Energy Gun 5 | 2 1 . 1 . 1 Energy Cannon 2 | . 2 . . . . Ballistic Gun 2 | . . . 1 . 1 Ballistic Cannon . | . . . . . . Launcher . | . . . . . . Special Weapon . | . . . . . . Impact Weapon . | . . . . . . Slashing Weapon . | . . . . . . Piercing Weapon . | . . . . . . Special Melee Weapon . | . . . . . . Unidentified Prototypes . | . . . . . . Parts Lost 17 | . . 5 . . 12 Power 4 | . . 1 . . 3 Propulsion 5 | . . 2 . . 3 Utility 2 | . . . . . 2 Weapon 6 | . . 2 . . 4 Highest Loss Streak 6 | . . 5 . . 6 To Critical Strikes . | . . . . . . Average Slot Usage (%) 78 | . 86 94 61 88 75 Engine 10 | . 14 1 2 11 15 Core 1 | . . 11 . . . Treads 8 | . 28 25 . . . Leg 5 | . . . . . 11 Flight 8 | . . . 17 22 9 Device 6 | . 1 14 11 11 4 Storage 11 | . 14 14 11 11 11 Protection 3 | . . . 8 11 4 Energy Gun 9 | . 24 . 2 11 9 Energy Cannon 4 | . 3 25 . . . Ballistic Gun 6 | . . . 8 11 10 Naked Turns . | . . . . . . Heaviest Build 27 | 12 22 24 27 27 27 Greatest Support 40 | 40 40 40 8 8 20 Greatest Overweight (x) 3 | . . 3 3 3 3 Average Overweight (x) . | . . . 2 3 1 Largest Inventory Capacity 10 | 8 10 10 10 10 10 Average Capacity 9 | 7 9 10 10 10 10 Most Carried 6 | 5 4 2 6 . 5 Average Carried . | . . . 1 . . Final Capacity 10 | 8 10 10 10 10 10 Final Carried . | . . . . . . Class Distribution -------------------- 76% | Mutant 23% | Scavenger-Mutant Dominant Class ---------------- Mutant | -10/Materials Mutant | -10/Mines Mutant | -9/Materials Mutant | -9/Storage Scavenger-Mutant | -9/Garrison Resources | -11 -10 -10 -9 -9 -9 ----------- Run | Yrd Mat Min Mat Sto Gar Matter Collected 522 | 77 . 109 96 . 240 Remotely 109 | . . 109 . . . Salvage Created 443 | . . . 96 . 347 Parts 40 | . . . 7 . 33 Haulers Intercepted . | . . . . . . Recyclers Shooed . | . . . . . . Parts Field Recycled . | . . . . . . Retrieved Matter . | . . . . . . Parts Self-Destructed . | . . . . . . Prevented . | . . . . . . Kills | -11 -10 -10 -9 -9 -9 ------- Run | Yrd Mat Min Mat Sto Gar Combat Hostiles Destroyed 16 | . . . 1 . 15 Guns 16 | . . . 1 . 15 Classes Destroyed 4 | . . . 2 . 2 Recycler 1 | . . . 1 . . Swarmer 10 | . . . . . 10 Grunt 4 | . . . . . 4 Sentry 2 | . . . 1 . 1 Best Kill Streak 5 | . . . 1 . 5 Combat Bots Only 5 | . . . 1 . 5 Max Kills in Single Turn 2 | . . . 1 . 2 Gunslinging . | . . . . . . Exploded . | . . . . . . Melee . | . . . . . . Uniques/NPCs Destroyed . | . . . . . . Combat | -11 -10 -10 -9 -9 -9 -------- Run | Yrd Mat Min Mat Sto Gar Hostile Shots Fired 199 | . . 19 6 . 174 Missed 48 | . . 3 2 . 43 Damage Taken 1971 | . . 699 56 . 1216 Core 544 | . . 138 14 . 392 Absorbed by Shields 18 | . . . . . 18 Core Remaining (%) 72 | 100 . 44 . . . Volleys Fired 45 | . . 1 7 . 37 Largest 2 | . . 2 1 . 2 Hottest 136 | . . 136 56 . 79 Shots Fired 75 | . . 2 7 . 66 Gun 73 | . . . 7 . 66 Cannon 2 | . . 2 . . . Launcher . | . . . . . . Special . | . . . . . . Kinetic 40 | . . . 6 . 34 Thermal 35 | . . 2 1 . 32 Explosive . | . . . . . . Electromagnetic . | . . . . . . Robot Hit Streak 7 | . . . 6 . 7 Robot Miss Streak 3 | . . 2 3 . 3 Penetration Max . | . . . . . . Secondary Targets 3 | . . . . . 3 Max Gunslinging Chain 1 | . . . . . 1 Shots Hit Robots 46 | . . . 7 . 39 Core Hits 26 | . . . 5 . 21 Critical Kills . | . . . . . . Critical Parts Destroyed . | . . . . . . Critical Strikes 1 | . . . . . 1 Burn 1 | . . . . . 1 Melee Attacks . | . . . . . . Impact . | . . . . . . Slashing . | . . . . . . Piercing . | . . . . . . Sneak Attacks . | . . . . . . Combat Hostiles . | . . . . . . Follow-up Attacks . | . . . . . . Damage Inflicted 558 | . . . 95 . 463 Guns 558 | . . . 95 . 463 Cannons . | . . . . . . Explosions . | . . . . . . Melee . | . . . . . . Ramming . | . . . . . . Kinetic 329 | . . . 81 . 248 Thermal 229 | . . . 14 . 215 Explosive . | . . . . . . Electromagnetic . | . . . . . . Impact . | . . . . . . Slashing . | . . . . . . Piercing . | . . . . . . Highest Corruption . | . . . . . . Average Corruption . | . . . . . . Corruption Purged . | . . . . . . Corruption Blocked . | . . . . . . Overload Shots . | . . . . . . Overflow Damage . | . . . . . . Projectiles . | . . . . . . Explosions . | . . . . . . Melee . | . . . . . . Knockbacks . | . . . . . . Impact . | . . . . . . Kinetic . | . . . . . . Secondary . | . . . . . . Self-Inflicted Damage . | . . . . . . Shots . | . . . . . . Rammed . | . . . . . . Targets Rammed . | . . . . . . Kicked . | . . . . . . Crushed . | . . . . . . Highest Temperature 241 | . . 39 1 . 241 Average Temperature 68 | . . 21 1 . 72 Received Heat Transfer 384 | . . 12 27 . 345 Effects 2 | . . . . . 2 Energy Bleed 1 | . . . . . 1 Interference 1 | . . . . . 1 Siege Activations . | . . . . . . Robots Corrupted . | . . . . . . Combat Hostiles . | . . . . . . Parts Fried . | . . . . . . Impact Corruptions . | . . . . . . Robots Melted . | . . . . . . Combat Hostiles . | . . . . . . Parts Melted 1 | . . . . . 1 Heat Transferred 643 | . . . 37 . 606 Parts Sabotaged . | . . . . . . Parts Stolen . | . . . . . . Parts Stripped . | . . . . . . Power Chain Reactions . | . . . . . . Alert | -11 -10 -10 -9 -9 -9 ------- Run | Yrd Mat Min Mat Sto Gar Peak Influence 318 | . . 30 50 20 318 Initial 20 | . . . . 20 13 Average 74 | . . 15 23 20 147 Maximum Alert Level 1 | . . . . . 1 Low Security (%) 82 | 100 100 100 100 100 62 Level 1 17 | . . . . . 37 Level 2 . | . . . . . . Level 3 . | . . . . . . Level 4 . | . . . . . . Level 5 . | . . . . . . High Security . | . . . . . . Max Security . | . . . . . . Squads Dispatched 2 | . 1 . 1 . . Investigation . | . . . . . . Extermination . | . . . . . . Reinforcement 2 | . 1 . 1 . . Assault . | . . . . . . Garrison . | . . . . . . Intercept . | . . . . . . Searches Triggered . | . . . . . . Construction Impeded . | . . . . . . Haulers Reinforced . | . . . . . . Active Scanning Responses . | . . . . . . Cargo Convoy Interrupts . | . . . . . . Stealth | -11 -10 -10 -9 -9 -9 --------- Run | Yrd Mat Min Mat Sto Gar Distress Signals . | . . . . . . Communications Jammed . | . . . . . . Distress Signals . | . . . . . . Times Spotted 30 | . . 6 2 . 22 Peak Tracking Total 7 | . . 3 2 . 7 Tactical Retreats 1 | . . 1 . . . Traps | -11 -10 -10 -9 -9 -9 ------- Run | Yrd Mat Min Mat Sto Gar Traps Triggered 4 | . . . . . 4 Indirectly . | . . . . . . Trap Hack Attempts . | . . . . . . Triggered . | . . . . . . Disarmed . | . . . . . . Reprogrammed . | . . . . . . Reused . | . . . . . . Traps Extracted . | . . . . . . Installed . | . . . . . . Triggered . | . . . . . . Machines | -11 -10 -10 -9 -9 -9 ---------- Run | Yrd Mat Min Mat Sto Gar Machines Disabled . | . . . . . . Max in Single Turn . | . . . . . . Machines Repaired . | . . . . . . Machines Dismantled . | . . . . . . Machines Sabotaged . | . . . . . . Overloaded Fab Kills . | . . . . . . Hacking | -11 -10 -10 -9 -9 -9 --------- Run | Yrd Mat Min Mat Sto Gar Machines Accessed 4 | . 1 . 1 1 1 Terminals 2 | . 1 . . . 1 Fabricators . | . . . . . . Repair Stations . | . . . . . . Recycling Units 1 | . . . 1 . . Scanalyzers . | . . . . . . Garrison Access 1 | . . . . 1 . Total Hacks 8 | . 1 . 2 1 4 Successful 1 | . . . . 1 . Failed 7 | . 1 . 2 . 4 Catastrophic 1 | . . . . . 1 Database Lockouts . | . . . . . . Manual . | . . . . . . Terminals 5 | . 1 . . . 4 Fabricators . | . . . . . . Repair Stations . | . . . . . . Recycling Units 2 | . . . 2 . . Scanalyzers . | . . . . . . Garrison Access 1 | . . . . 1 . Terminal Hacks . | . . . . . . Fabricator Hacks . | . . . . . . Repair Station Hacks . | . . . . . . Recycling Unit Hacks . | . . . . . . Scanalyzer . | . . . . . . Garrison Access Hacks 1 | . . . . 1 . Unlock Access 1 | . . . . 1 . Unauthorized Hacks . | . . . . . . Terminals . | . . . . . . Fabricators . | . . . . . . Repair Stations . | . . . . . . Recycling Units . | . . . . . . Scanalyzers . | . . . . . . Garrison Access . | . . . . . . Data Cores Recovered . | . . . . . . Used . | . . . . . . Hacking Detections 2 | . . . 1 . 1 Full Trace Events 1 | . . . . . 1 Feedback Events . | . . . . . . Feedback Blocked . | . . . . . . Robot Schematics Acquired . | . . . . . . Robots Built . | . . . . . . Authchips . | . . . . . . Time . | . . . . . . Total Robot Build Rating . | . . . . . . Part Schematics Acquired . | . . . . . . Parts Built . | . . . . . . Authchips . | . . . . . . Time . | . . . . . . Total Part Build Rating . | . . . . . . Parts Repaired . | . . . . . . Time . | . . . . . . Parts Recycled . | . . . . . . Recycled Matter . | . . . . . . Retrieved Matter . | . . . . . . Retrieved Components . | . . . . . . Parts Scanalyzed . | . . . . . . Part Schematics Acquired . | . . . . . . Parts Damaged . | . . . . . . Bothacking | -11 -10 -10 -9 -9 -9 ------------ Run | Yrd Mat Min Mat Sto Gar Used RIF Installer . | . . . . . . Robots Hacked . | . . . . . . Non-combat . | . . . . . . Combat . | . . . . . . Robot Hacks Applied . | . . . . . . Relay Couplers Released . | . . . . . . Fabnet Peak Effective % . | . . . . . . Robots Rewired . | . . . . . . Allies Hacked . | . . . . . . Hacks Repelled . | . . . . . . Allies | -11 -10 -10 -9 -9 -9 -------- Run | Yrd Mat Min Mat Sto Gar Total Allies . | . . . . . . Largest Group . | . . . . . . Highest-Rated Group . | . . . . . . Highest-Rated Ally . | . . . . . . Total Orders . | . . . . . . Ally Attacks . | . . . . . . Total Damage . | . . . . . . Kills . | . . . . . . Allies Corrupted . | . . . . . . Allies Melted . | . . . . . . Intel | -11 -10 -10 -9 -9 -9 ------- Run | Yrd Mat Min Mat Sto Gar Robot Analysis Total . | . . . . . . Derelict Logs Recovered . | . . . . . . Drone Launches . | . . . . . . Drone Recoveries . | . . . . . . Exploration | -11 -10 -10 -9 -9 -9 ------------- Run | Yrd Mat Min Mat Sto Gar Turns Passed 1651 | 115 225 252 270 23 766 Spaces Moved 768 | 71 129 147 112 9 300 Core 54 | 21 . 8 25 . . Treads 318 | 50 129 139 . . . Legs 236 | . . . . . 236 Wheels . | . . . . . . Hover . | . . . . . . Flight 160 | . . . 87 9 64 Fastest Speed 50 | 50 160 160 197 277 120 Average Speed 163 | 127 160 162 211 277 153 Slowest Speed 280 | 160 160 200 277 277 280 Overloaded Moves . | . . . . . . Propulsion Burnouts . | . . . . . . Robots Hopped . | . . . . . . Cave-ins Triggered . | . . . . . . Exploration Rate (%) 18 | 6 16 40 7 3 41 Regions Visited 5 Branch Regions 2 Pre-discovered Areas . | . . . . . . Known Exits Taken 1 | . . . . 1 . Unknown Exits Taken 4 | 1 1 1 1 . . Scrap Searched . | . . . . . . Spaces Dug . | . . . . . . Terrain Destroyed . | . . . . . . Melee . | . . . . . . Projectile . | . . . . . . AOE . | . . . . . . Terrain Rammed . | . . . . . . Walls Destroyed . | . . . . . . Machines Disabled . | . . . . . . Actions | -11 -10 -10 -9 -9 -9 --------- Run | Yrd Mat Min Mat Sto Gar Total 1099 | 96 149 160 142 8 544 Wait 143 | 12 7 7 . . 117 Move 761 | 70 128 146 111 8 298 Hop . | . . . . . . Pick Up 35 | 7 5 2 12 . 9 Fast Attach . | . . . . . . Attach 23 | 6 4 1 6 . 6 Detach . | . . . . . . Swap 5 | . 1 1 . . 3 Drop 17 | 1 4 2 6 . 4 Fire 45 | . . 1 7 . 37 Melee . | . . . . . . Ram . | . . . . . . Kick . | . . . . . . Crush . | . . . . . . Escape Stasis 69 | . . . . . 69 Rewire 1 | . . . . . 1 Trap . | . . . . . . Miscellaneous . | . . . . . . Route ------- -11/Scrapyard -10/Materials -10/Mines -9/Materials -9/Storage -9/Garrison (discovered 1 exit: [*Mat]) History --------- Turn | Location | Event 8 | -11/Scrapyard | Discovered new exit (range 15) 116 | -11/Scrapyard | Entered Materials 201 | -10/Materials | Discovered new exit (range 10) 251 | -10/Materials | Met 8R-AWN 301 | -10/Materials | Build established: Mutant 341 | -10/Materials | Entered Mines 343 | -10/Mines | Followed 8R-AWN into the Mines 489 | -10/Mines | Assembled infested the area 494 | -10/Mines | Assisted by a Guerilla fighting off Assembled 537 | -10/Mines | Discovered new exit (range 15) 593 | -10/Mines | Core integrity fell below 50% 593 | -10/Mines | Entered Materials 593 | -9/Materials | Evolved 2 slots: Power x1, Utility x1 593 | -9/Materials | Discovered new exit (range 8) 610 | -9/Materials | Lost 5 parts (1p2n2w) 863 | -9/Materials | Entered Storage 877 | -9/Storage | Identified exit to Garrison 886 | -9/Storage | Entered Garrison 1016 | -9/Garrison | Triggered checkpoint 1164 | -9/Garrison | Triggered checkpoint 1220 | -9/Garrison | Lost 6 parts (1p1n2u2w) 1220 | -9/Garrison | Core integrity fell below 50% 1340 | -9/Garrison | Triggered checkpoint 1488 | -9/Garrison | Discovered new exit (range 13) 1549 | -9/Garrison | Attempted to access garrison exit controls, blocked by remote lockdown 1562 | -9/Garrison | Build established: Scavenger-Mutant 1644 | -9/Garrison | Core integrity fell below 20% 1652 | -9/Garrison | Destroyed by G-34 Mercenary with Small Laser Last Messages --------------- 01574_ ALERT: Suspicious activity at Terminal G002. Transmitting hostile system tracking data. Garrison Door activated. 01615_ S-10 Pest destroyed. 01615_ Switching to secondary target: G-34 Mercenary. 01617_ Lgt. Ion Engine destroyed. 01619_ S-10 Pest destroyed. 01620_ Acquired 1 matter. 01625_ S-10 Pest destroyed. 01626_ Acquired 1 matter. 01628_ C-30 ARC bursts open, deploying its payload. 01628_ S-10 Pest unfolds itself. 01628_ S-10 Pest destroyed. 01631_ Acquired 1 matter. 01632_ Ion Engine destroyed. 01637_ G-34 Mercenary destroyed. 01639_ Lgt. Assault Rifle destroyed. 01641_ Sml. Laser destroyed. 01643_ Aluminum Leg destroyed. 01647_ S-10 Pest destroyed. Map ----- +----------------------------------------------------+ | ??????????????????????????????????????????# " #??? | | ??????????????????????????????????????????### #??? | | ????????????????????????????????????????????# #??? | | ????????????????????????????????????????????# #??? | | ????????????????????????????????????????????# #### | | ????????????????????????????????????????????# | | ????????????????????????????????????????????##### | | ????????????????????????????????????????????????# | | ????????????????????????????????????????????????# | | ????????????????????????????????????????????????# | | ????????????????????????????????????############# | | ????????????????????????????????????# | | ????????????????????????????????????# | | ????????????????????????????????????# ######### | | ????????????????????????????????????# #???????# | | ????????????????????????????????????# #???????# | | ????????????????????????????????????# #???????# | | ??????????????????????????????####### #???????# | | ??????????????# ??????????????# =[## #???????# | | ??????????????# ############# = ## ##??????# | | ??????????????# "%%[ [=! * ######## | | ??????????????# "* %=*=* | | ????????????? =%[% === | | ??????????????????######## =g## ## ########## | | ???????????????????????###s%g## ##*=[###??????? | | ???????????????????????# @ s * [#??????? | | ???????????????????????# [ #??????? | | ???????????????????????# !#??????? | | ???????????????????????# #??????? | | ???????????????????????### ## ## ###??????? | | ?????????????????????????# ## ## ########## | | ?????????????????????????# | | ?????????????????????????# | | ?????????????????????????# ^^ ######## | | ?????????????????????????# ^^## ######??????# | | ?????????????????????????# #? #???????????# | | ?????????????????????????# #?####????????????# | | ?????????????????????????? #?????????????????# | | ?????????????????????????? #?????????????????# | | ?????????????????????????? #?????????????????# | | ??????????????????????????? ???????????????????# | | ???????????????????????????????????????????????# | | ???????????????????????????????????????????????# | | ???????????????????????????????????????######### | | ???????????????????????????????????????# ^ | | ???????????????????????????????????????# ####### | | ???????????????????????????????????????????????# | | ???????????????????????????????????????????????# | | ???????????????????????????????????????????????### | | ?????????????????????????????????????????????????? | +----------------------------------------------------+ Best States ------------- Heat Dissipation 42 Energy Generation 15 Energy Capacity 275 Matter Stores 300 Matter Capacity 300 Sight Range 16 Terrain Scan Density 10 Armor Coverage 225 Evasion (%) 55 Recoil Reduction 2 Item Schematics ----------------- None Robot Schematics ------------------ None Fabricated ------------ Nothing Alien Tech Used ----------------- None Achievements -------------- I Survived The Infestation Use The Force Challenges ------------ None Game ------ Seed EncryptedLobotomyPenetrator Manual? 0 Play Time 00:18:23 Cumulative 1.9 hours Start 2024.04.07 @ 20:40:21 End 2024.04.07 @ 20:54:17 Sessions 1 Manual Loads 0 Difficulty Rogue Special Mode None Game No. 4 Rogue 4 Adventurer 0 Explorer 0 Win Type - Total 0 Types 0/0/0/0/0/0/0/0/0 Lore% 3 Gallery% 7 Achievement% 8 Wizard Run 0 Options --------- Layout 1 ASCII 0 Keyboard 0 Movement Numpad Keybinds 0 Fullscreen 1 Font 24/Smallcaps Map View 38x17 Zoom Use 98% Tactical HUD 1 Map Filters NONE Filters NONE Steam 1 RUN: ea72fae6-3f9b-4945-aa45-3777cd8a5dac